bitfinex/quotes_BTCUSD_20240820
["timestamp","ask_amount","ask_price","bid_price","bid_amount"]
[1724133427155,0.063027,61161.0,61160.0,3.0440979]
[1724133427156,0.000827,61161.0,61160.0,3.0440979]
[1724133427436,0.000827,61161.0,61160.0,2.99134536]
[1724133427831,0.000827,61161.0,61160.0,2.99534575]
[1724133428036,0.000827,61161.0,61160.0,2.99134575]
[1724133428813,0.000827,61161.0,61160.0,2.99534575]
[1724133429439,0.000827,61161.0,61160.0,3.04009498]
[1724133429743,0.000827,61161.0,61160.0,3.04409498]
[1724133431582,0.000827,61161.0,61160.0,3.00409632]
[1724133431777,0.000827,61161.0,61160.0,3.36793516]
[1724133431977,0.000827,61161.0,61160.0,3.36790363]
[1724133432171,0.000827,61161.0,61160.0,3.27042385]
[1724133432794,0.000827,61161.0,61160.0,3.38831299]
[1724133433132,0.000827,61161.0,61160.0,3.26642385]
[1724133433473,0.000827,61161.0,61160.0,3.36389519]
[1724133433669,0.000827,61161.0,61160.0,3.26642385]
[1724133434086,0.000827,61161.0,61160.0,3.36387538]
[1724133434325,0.000827,61161.0,61160.0,3.36787538]
[1724133434507,0.000827,61161.0,61160.0,3.33187681]
[1724133434723,0.000827,61161.0,61160.0,3.27042182]
[1724133435067,0.000827,61161.0,61160.0,3.39231096]
[1724133435472,0.000827,61161.0,61160.0,3.26642182]
[1724133435682,0.000827,61161.0,61160.0,3.35631442]
[1724133435872,0.000827,61161.0,61160.0,3.39231002]
[1724133436106,0.000827,61161.0,61160.0,3.27042088]
[1724133436467,0.000827,61161.0,61160.0,3.35631442]
[1724133436665,0.000827,61161.0,61160.0,3.39230952]
[1724133437480,0.000827,61161.0,61160.0,3.39230967]
[1724133437662,0.000827,61161.0,61160.0,3.38857178]
[1724133437890,0.000827,61161.0,61160.0,3.26679092]
[1724133438065,0.000827,61161.0,61160.0,3.22919092]
[1724133438421,0.064127,61161.0,61160.0,3.32662123]
[1724133438618,0.064127,61161.0,61160.0,3.22919092]
[1724133439455,0.064127,61161.0,61160.0,3.22919247]
[1724133439936,0.064127,61161.0,61160.0,3.2291926]
[1724133440306,0.000827,61161.0,61160.0,3.32662291]
[1724133440635,0.000827,61161.0,61160.0,3.2291926]
[1724133440786,0.000827,61161.0,61160.0,3.32665178]
[1724133440999,0.000827,61161.0,61160.0,3.2291926]
[1724133441624,0.000827,61161.0,61160.0,3.32665178]
[1724133442029,0.000827,61161.0,61160.0,3.2291926]
[1724133442392,0.000827,61161.0,61160.0,3.32664258]
[1724133442613,0.000827,61161.0,61160.0,3.2291926]
[1724133443448,0.000827,61161.0,61160.0,3.32664258]
[1724133444050,0.000827,61161.0,61160.0,3.32664255]
[1724133444486,0.000827,61161.0,61160.0,3.33064255]
[1724133445664,0.000827,61161.0,61160.0,3.32664255]
[1724133446031,0.000827,61161.0,61160.0,4.83064255]
[1724133446437,0.000827,61161.0,61160.0,5.06020357]
[1724133446641,0.000827,61161.0,61160.0,5.18980357]
[1724133446839,0.000827,61161.0,61160.0,5.31558443]
[1724133447079,0.000827,61161.0,61160.0,4.98857343]
[1724133447502,0.000827,61161.0,61160.0,4.98457343]
[1724133447713,0.000827,61161.0,61160.0,4.98857343]
[1724133447927,0.000827,61161.0,61160.0,4.86279098]
[1724133448934,0.000827,61161.0,61160.0,5.19380198]
[1724133449100,0.000827,61161.0,61160.0,4.86679098]
[1724133449305,0.000827,61161.0,61160.0,4.86279098]
[1724133449502,0.000827,61161.0,61160.0,4.82679567]
[1724133449680,0.000827,61161.0,61160.0,4.86279067]
[1724133449885,0.000827,61161.0,61160.0,4.86679067]
[1724133450207,0.000827,61161.0,61160.0,4.86279067]
[1724133450412,0.000827,61161.0,61160.0,4.86679067]
[1724133450598,0.000827,61161.0,61160.0,5.19380167]
[1724133450795,0.000827,61161.0,61160.0,4.86679067]
[1724133451201,0.000827,61161.0,61160.0,5.21769159]
[1724133451600,0.000827,61161.0,61160.0,5.25564174]
[1724133451826,0.84835487,61162.0,61161.0,2.322636]
[1724133452038,0.0753,61184.0,61182.0,0.004]
[1724133452233,0.0753,61184.0,61182.0,2.28199264]
[1724133452385,0.0753,61184.0,61182.0,2.11177864]
[1724133452582,0.0753,61184.0,61182.0,2.00107864]
[1724133453189,0.080627,61183.0,61182.0,1.67418564]
[1724133453593,0.080627,61183.0,61182.0,3.17418564]
[1724133453797,0.080627,61183.0,61182.0,3.18818564]
[1724133454202,0.080627,61183.0,61182.0,3.18418564]
[1724133454560,0.080627,61183.0,61182.0,3.18718564]
[1724133454761,0.080627,61183.0,61182.0,3.20218564]
[1724133454959,0.080627,61183.0,61182.0,3.19818564]
[1724133455164,0.143627,61183.0,61182.0,3.19818564]
[1724133455572,0.143627,61183.0,61182.0,3.20218564]
[1724133455768,0.143627,61183.0,61182.0,3.20217957]
[1724133456443,0.063827,61183.0,61182.0,4.30907257]
[1724133456695,0.063827,61183.0,61182.0,3.98217957]
[1724133456942,0.063827,61183.0,61182.0,3.97817957]
[1724133457149,0.063827,61183.0,61182.0,4.30907257]
[1724133457579,0.142427,61183.0,61182.0,3.20217957]
[1724133458822,0.142427,61183.0,61182.0,3.99217957]
[1724133459269,0.000827,61183.0,61182.0,4.35267257]
[1724133459477,0.000827,61183.0,61182.0,4.47567257]
[1724133459884,0.000827,61183.0,61182.0,4.43968839]
[1724133460089,0.000827,61183.0,61182.0,4.78855953]
[1724133460297,0.000827,61183.0,61182.0,4.77455953]
[1724133460502,0.000827,61183.0,61182.0,4.78855953]
[1724133460716,0.000827,61183.0,61182.0,4.75258139]
[1724133460940,0.000827,61183.0,61182.0,4.73858139]
[1724133461148,0.000827,61183.0,61182.0,4.80110132]
[1724133461361,0.000827,61183.0,61182.0,4.78310132]
[1724133461800,0.000827,61183.0,61182.0,4.46020832]
[1724133462049,0.000827,61183.0,61182.0,4.46089366]
[1724133462256,0.000827,61183.0,61182.0,4.55529693]
[1724133462458,0.000827,61183.0,61182.0,4.54129693]
[1724133462660,0.000827,61183.0,61182.0,4.55529693]
[1724133462873,0.000827,61183.0,61182.0,4.56529693]
[1724133463118,0.000827,61183.0,61182.0,4.50278839]
[1724133463320,0.000827,61183.0,61182.0,4.51678839]
[1724133463534,0.000827,61183.0,61182.0,4.56927064]
[1724133464886,0.144327,61183.0,61182.0,1.66619539]
[1724133465516,0.144327,61183.0,61182.0,1.70217927]
[1724133465721,0.144327,61183.0,61182.0,1.67417927]
[1724133465922,0.144327,61183.0,61182.0,1.68817927]
[1724133466129,0.144327,61183.0,61182.0,1.70217927]
[1724133466339,0.144327,61183.0,61182.0,1.53800188]
[1724133466541,0.144327,61183.0,61182.0,1.488018]
[1724133467352,0.144327,61183.0,61182.0,1.502018]
[1724133467697,0.144327,61183.0,61182.0,1.488018]
[1724133467916,0.144327,61183.0,61182.0,1.65219539]
[1724133468105,0.144327,61183.0,61182.0,1.67418001]
[1724133468578,0.144327,61183.0,61182.0,1.68818001]
[1724133469582,0.144327,61183.0,61182.0,1.70218001]
[1724133469780,0.144327,61183.0,61182.0,3.20218001]
[1724133470540,0.144327,61183.0,61182.0,3.19818001]
[1724133471411,0.144327,61183.0,61182.0,1.69818001]
[1724133471619,0.144327,61183.0,61182.0,1.66619539]
[1724133471986,0.144327,61183.0,61182.0,1.69818187]
[1724133472170,0.144327,61183.0,61182.0,1.66219539]
[1724133472471,0.144327,61183.0,61182.0,1.69818188]
[1724133472870,0.144327,61183.0,61182.0,2.55218188]
[1724133473296,0.144327,61183.0,61182.0,1.70218188]
[1724133474449,0.065527,61183.0,61182.0,2.86507488]
[1724133474648,0.065527,61183.0,61182.0,2.86907488]
[1724133474897,0.065527,61183.0,61182.0,2.86507488]
[1724133475115,0.065527,61183.0,61182.0,2.86907488]
[1724133475317,0.065527,61183.0,61182.0,4.36907488]
[1724133477889,0.000827,61183.0,61182.0,4.39207488]
[1724133478286,0.000827,61183.0,61182.0,4.44058553]
[1724133478707,0.000827,61183.0,61182.0,4.40459904]
[1724133479110,0.000827,61183.0,61182.0,4.35608839]
[1724133480601,0.142827,61183.0,61182.0,4.38158434]
[1724133480796,0.142827,61183.0,61182.0,4.36906773]
[1724133481530,0.065527,61183.0,61182.0,4.36906773]
[1724133481963,0.000827,61183.0,61182.0,4.33308839]
[1724133482160,0.000827,61183.0,61182.0,4.35608839]
[1724133482308,0.000827,61183.0,61182.0,4.40458434]
[1724133482514,0.000827,61183.0,61182.0,4.40058434]
[1724133482743,0.000827,61183.0,61182.0,4.40458434]
[1724133483339,0.000827,61183.0,61182.0,4.73147734]
[1724133483548,0.000827,61183.0,61182.0,4.93109476]
[1724133483724,0.000827,61183.0,61182.0,5.02411607]
[1724133483922,0.000827,61183.0,61182.0,4.93109476]
[1724133484129,1e-06,61183.0,61182.0,4.93109476]
[1724133484370,0.000827,61186.0,61182.0,4.93109476]
[1724133484371,3.7e-07,61186.0,61185.0,0.004]
[1724133484517,3.7e-07,61186.0,61185.0,1.34744554]
[1724133484747,3.7e-07,61186.0,61185.0,2.15235049]
[1724133484954,3.7e-07,61186.0,61185.0,4.63298149]
[1724133485151,3.7e-07,61186.0,61185.0,5.07706151]
[1724133485657,3.7e-07,61186.0,61185.0,5.072784]
[1724133485881,3.7e-07,61186.0,61185.0,4.95159657]
[1724133486080,3.7e-07,61186.0,61185.0,4.95156676]
[1724133486364,7.2e-07,61187.0,61186.0,1.801796]
[1724133486588,7.2e-07,61187.0,61186.0,2.95779503]
[1724133486798,7.2e-07,61187.0,61186.0,2.96179503]
[1724133486975,7.2e-07,61187.0,61186.0,4.46179503]
[1724133487375,7.2e-07,61187.0,61186.0,4.90985594]
[1724133488182,7.2e-07,61187.0,61186.0,4.92385594]
[1724133488387,7.2e-07,61187.0,61186.0,4.93785594]
[1724133488606,7.2e-07,61187.0,61186.0,4.97104357]
[1724133488805,0.0636,61202.0,61201.0,1.801356]
[1724133489003,0.0636,61202.0,61201.0,2.81903339]
[1724133489451,0.0636,61202.0,61201.0,2.81503339]
[1724133490073,0.0636,61202.0,61201.0,2.82903339]
[1724133490283,0.0636,61202.0,61201.0,2.84303339]
[1724133490466,0.0636,61202.0,61201.0,4.34303339]
[1724133490687,0.0636,61202.0,61201.0,4.34703339]
[1724133490922,0.0636,61202.0,61201.0,4.38300346]
[1724133491080,0.0636,61202.0,61201.0,4.37900346]
[1724133491281,0.0636,61202.0,61201.0,4.38300346]
[1724133491599,0.0636,61202.0,61201.0,4.40200346]
[1724133492604,0.0636,61202.0,61201.0,4.28750346]
[1724133492812,0.0636,61202.0,61201.0,4.34989674]
[1724133493017,0.0636,61202.0,61201.0,4.29741557]
[1724133493388,0.065,61206.0,61204.0,1.801268]
[1724133493592,0.065,61206.0,61204.0,2.89941546]
[1724133493791,0.065,61206.0,61204.0,2.88041546]
[1724133493953,0.14697,61205.0,61204.0,4.38041546]
[1724133494160,0.14697,61205.0,61204.0,2.55263946]
[1724133494584,0.14697,61205.0,61204.0,2.56663946]
[1724133494755,0.14697,61205.0,61204.0,2.40346207]
[1724133494972,0.14697,61205.0,61204.0,2.41746207]
[1724133495433,0.14697,61205.0,61204.0,2.381492]
[1724133495638,0.14697,61205.0,61204.0,2.41746461]
[1724133496597,0.14697,61205.0,61204.0,2.41446461]
[1724133497993,0.14697,61205.0,61204.0,2.08768861]
[1724133498194,0.14697,61205.0,61204.0,1.20768861]
[1724133498407,0.14697,61205.0,61204.0,1.171716]
[1724133499614,0.14697,61205.0,61204.0,1.174716]
[1724133500689,0.14697,61205.0,61204.0,1.33889339]
[1724133500887,0.14697,61205.0,61204.0,1.37486695]
[1724133501092,0.14697,61205.0,61204.0,2.52566939]
[1724133501295,0.14697,61205.0,61204.0,2.56164295]
[1724133501494,0.14697,61205.0,61204.0,2.55764295]
[1724133501839,0.14697,61205.0,61204.0,2.56164295]
[1724133502245,0.14697,61205.0,61204.0,2.5711655]
[1724133502661,0.14697,61205.0,61204.0,2.5671655]
[1724133502861,0.14697,61205.0,61204.0,2.5711655]
[1724133503482,0.14697,61205.0,61204.0,2.57116293]
[1724133503693,0.14697,61205.0,61204.0,1.70716293]
[1724133504202,0.14697,61205.0,61204.0,2.45116293]
[1724133506917,0.06927,61205.0,61204.0,2.77793893]
[1724133507125,0.06927,61205.0,61204.0,2.90093893]
[1724133507126,0.00827,61205.0,61204.0,2.90093893]
[1724133507347,0.00827,61205.0,61204.0,2.86496794]
[1724133507552,0.00827,61205.0,61204.0,4.400936]
[1724133509971,0.00827,61205.0,61204.0,4.44940911]
[1724133510170,0.00827,61205.0,61204.0,4.67074932]
[1724133510375,0.00827,61205.0,61204.0,5.09447155]
[1724133511428,0.00827,61205.0,61204.0,5.08047155]
[1724133511659,0.00827,61205.0,61204.0,4.94992532]
[1724133511891,0.07327,61205.0,61204.0,4.7137088]
[1724133512093,0.07327,61205.0,61204.0,4.76216064]
[1724133512296,0.07327,61205.0,61204.0,4.77616064]
[1724133512434,0.07327,61205.0,61204.0,4.76216064]
[1724133512838,0.00827,61205.0,61204.0,4.77616064]
[1724133513240,0.00827,61205.0,61204.0,4.80976064]
[1724133513448,0.00827,61205.0,61204.0,4.8057648]
[1724133513827,0.00827,61205.0,61204.0,4.7957648]
[1724133514207,0.00827,61205.0,61204.0,5.05526444]
[1724133514208,1e-06,61205.0,61204.0,5.05526444]
[1724133514389,1e-06,61205.0,61204.0,4.99053605]
[1724133514993,1e-06,61205.0,61204.0,5.05151742]
[1724133515307,1e-06,61205.0,61204.0,5.05551742]
[1724133515469,1e-06,61205.0,61204.0,4.95857119]
[1724133515835,1e-06,61205.0,61204.0,5.07975398]
[1724133516045,1e-06,61205.0,61204.0,4.98857119]
[1724133516245,1e-06,61205.0,61204.0,5.02584452]
[1724133516448,0.0635,61222.0,61221.0,1.796767]
[1724133516656,0.0635,61222.0,61221.0,2.81694439]
[1724133517214,0.0635,61222.0,61221.0,4.31294439]
[1724133517802,0.0635,61222.0,61221.0,4.3266026]
[1724133518236,0.0635,61222.0,61221.0,4.3406026]
[1724133518458,0.0635,61222.0,61221.0,4.3366026]
[1724133518653,0.0635,61222.0,61221.0,4.3406026]
[1724133518866,0.0635,61222.0,61221.0,4.3546026]
[1724133519065,0.00827,61223.0,61222.0,1.800734]
[1724133519305,0.00827,61223.0,61222.0,2.86691139]
[1724133519515,0.00827,61223.0,61222.0,2.91296889]
[1724133519690,1e-06,61223.0,61222.0,3.27324789]
[1724133520017,1e-06,61223.0,61222.0,3.22319039]
[1724133520398,1e-06,61223.0,61222.0,3.27161325]
[1724133520598,1e-06,61223.0,61222.0,3.22319039]
[1724133520801,1e-06,61223.0,61222.0,4.36691139]
[1724133521007,0.141601,61223.0,61222.0,3.60091139]
[1724133521225,0.141601,61223.0,61222.0,2.11491139]
[1724133521420,0.141601,61223.0,61222.0,2.86491139]
[1724133523023,0.141601,61223.0,61222.0,1.76523239]
[1724133523463,0.141601,61223.0,61222.0,2.63523239]
[1724133523991,0.141601,61223.0,61222.0,1.76523239]
[1724133524202,0.141601,61223.0,61222.0,1.76123239]
[1724133524754,0.141601,61223.0,61222.0,1.76523239]
[1724133525169,0.141601,61223.0,61222.0,3.26523239]
[1724133525695,0.141601,61223.0,61222.0,3.26123239]
[1724133525920,0.141601,61223.0,61222.0,1.76523239]
[1724133526050,0.141601,61223.0,61222.0,2.49523239]
[1724133526258,0.141601,61223.0,61222.0,2.63523239]
[1724133526880,0.141601,61223.0,61222.0,1.70119447]
[1724133527696,0.141601,61223.0,61222.0,2.57119447]
[1724133528482,0.141601,61223.0,61222.0,1.70119447]
[1724133529006,0.141601,61223.0,61222.0,2.44119447]
[1724133529206,0.141601,61223.0,61222.0,1.70119447]
[1724133529608,0.141601,61223.0,61222.0,1.70019447]
[1724133530025,0.141601,61223.0,61222.0,2.52019447]
[1724133530969,0.141601,61223.0,61222.0,1.20733808]
[1724133531210,0.141601,61223.0,61222.0,1.171376]
[1724133533444,0.141601,61223.0,61222.0,0.490018]
[1724133533655,0.1468,61222.0,61221.0,0.16334]
[1724133533878,0.14616911,61222.0,61221.0,0.490025]
[1724133534618,0.14716911,61222.0,61221.0,0.16334]
[1724133534846,0.14716911,61222.0,61221.0,0.17034]
[1724133535819,0.14716911,61222.0,61221.0,0.007]
[1724133536118,0.14716911,61222.0,61221.0,0.013]
[1724133536641,0.14716911,61222.0,61221.0,0.006]
[1724133537295,0.14716911,61222.0,61221.0,0.007]
[1724133537675,0.14716911,61222.0,61221.0,0.013]
[1724133537908,0.14716911,61222.0,61221.0,0.176342]
[1724133540207,0.14716911,61222.0,61221.0,0.013]
[1724133540608,0.14716911,61222.0,61221.0,0.176342]
[1724133541705,0.14716911,61222.0,61221.0,0.013]
[1724133542301,0.14716911,61222.0,61209.0,0.326748]
[1724133542302,0.0648,61212.0,61209.0,0.326748]
[1724133542428,0.001,61214.0,61198.0,0.001]
[1724133542429,0.0648,61213.0,61198.0,0.001]
[1724133542634,0.1451,61211.0,61210.0,0.16337]
[1724133543076,0.1451,61211.0,61210.0,0.490113]
[1724133544626,0.1451,61211.0,61210.0,1.148599]
[1724133545478,0.1451,61211.0,61210.0,1.152599]
[1724133546492,0.1451,61211.0,61210.0,1.155599]
[1724133547298,1e-06,61223.0,61222.0,0.816697]
[1724133547633,1e-06,61223.0,61222.0,1.143376]
[1724133547844,0.145801,61223.0,61222.0,1.143376]
[1724133548056,0.145801,61223.0,61222.0,1.144376]
[1724133548256,0.145801,61223.0,61222.0,1.146376]
[1724133549149,0.145801,61223.0,61222.0,1.143376]
[1724133549352,0.145801,61223.0,61222.0,1.145376]
[1724133549548,0.145801,61223.0,61222.0,1.146376]
[1724133549754,0.145801,61223.0,61222.0,1.31055339]
[1724133550110,0.148801,61223.0,61222.0,1.30655339]
[1724133550321,0.145801,61223.0,61222.0,1.30655339]
[1724133550872,0.145801,61223.0,61222.0,1.31255339]
[1724133551199,0.145801,61223.0,61222.0,1.32555339]
[1724133551402,0.145801,61223.0,61222.0,1.65023239]
[1724133551403,0.001001,61223.0,61222.0,1.65023239]
[1724133551843,0.001001,61223.0,61222.0,2.45483239]
[1724133552045,0.001001,61223.0,61222.0,2.45083239]
[1724133552265,0.001001,61223.0,61222.0,3.95483239]
[1724133552442,0.001001,61223.0,61222.0,3.19083239]
[1724133552686,0.001001,61223.0,61222.0,4.05383239]
[1724133552925,0.001001,61223.0,61222.0,4.04983239]
[1724133553649,1e-06,61223.0,61222.0,4.03683239]
[1724133554082,1e-06,61223.0,61222.0,4.08503239]
[1724133554278,1e-06,61223.0,61222.0,4.43471139]
[1724133554478,1e-06,61223.0,61222.0,4.42271139]
[1724133554705,1e-06,61223.0,61222.0,4.44771139]
[1724133555108,1e-06,61223.0,61222.0,4.44071139]
[1724133555465,1e-06,61223.0,61222.0,5.09141626]
[1724133555672,1e-06,61223.0,61222.0,5.10442699]
[1724133555862,0.0831,61240.0,61239.0,1.143061]
[1724133555990,0.0831,61240.0,61239.0,1.30623839]
[1724133556624,0.0831,61240.0,61239.0,1.143061]
[1724133557024,0.1489,61240.0,61239.0,1.154061]
[1724133557814,0.1489,61240.0,61239.0,0.011]
[1724133557815,0.47636839,61240.0,61239.0,0.011]
[1724133558016,0.31307739,61240.0,61239.0,0.011]
[1724133558178,0.1499,61240.0,61239.0,0.011]
[1724133558334,0.1499,61240.0,61239.0,0.021]
[1724133558943,0.1499,61240.0,61239.0,0.011]
[1724133559144,0.1499,61240.0,61231.0,0.326631]
[1724133559145,0.1439,61232.0,61231.0,0.326631]
[1724133559390,0.1439,61232.0,61231.0,0.489946]
[1724133560714,0.1439,61232.0,61231.0,0.495946]
[1724133561289,0.1439,61232.0,61231.0,0.501946]
[1724133566692,0.1429,61232.0,61231.0,0.501946]
[1724133567330,0.1439,61232.0,61231.0,0.501946]
[1724133569270,0.1439,61232.0,61231.0,0.828577]
[1724133569475,0.1429,61232.0,61231.0,0.501946]
[1724133569667,0.1429,61232.0,61231.0,0.828577]
[1724133572803,0.1429,61232.0,61231.0,1.155208]
[1724133573035,0.1429,61232.0,61231.0,1.158208]
[1724133573225,0.1429,61232.0,61231.0,1.155208]
[1724133573989,0.1429,61232.0,61231.0,0.828577]
[1724133575237,0.1429,61232.0,61231.0,1.155208]
[1724133575681,0.1429,61232.0,61231.0,0.828577]
[1724133576411,0.1429,61232.0,61231.0,1.155208]
[1724133576614,0.1429,61232.0,61231.0,0.828577]
[1724133577798,0.079,61235.0,61234.0,0.816537]
[1724133579442,0.079,61235.0,61234.0,0.818537]
[1724133580195,0.079,61235.0,61234.0,0.820537]
[1724133580397,0.079,61235.0,61234.0,1.147152]
[1724133587248,0.1437,61235.0,61234.0,0.820537]
[1724133588401,0.1447,61235.0,61234.0,0.820537]
[1724133590685,0.1447,61235.0,61234.0,0.493922]
[1724133591158,0.1447,61235.0,61234.0,0.004]
[1724133591368,0.94103759,61235.0,61234.0,0.004]
[1724133591593,1.27331174,61235.0,61234.0,0.004]
[1724133591807,1.43713221,61235.0,61234.0,0.004]
[1724133592030,1.29777027,61235.0,61234.0,0.004]
[1724133592233,1.46439261,61235.0,61234.0,0.004]
[1724133592439,1.46439261,61235.0,61234.0,0.002]
[1724133592645,0.306313,61232.0,61231.0,0.0009086]
[1724133592853,0.84503401,61232.0,61231.0,0.0009086]
[1724133593765,1.12374239,61232.0,61231.0,0.0009086]
[1724133593894,1.13474239,61232.0,61231.0,0.0019086]
[1724133594123,1.17265285,61232.0,61231.0,0.0009086]
[1724133594306,1.12374239,61232.0,61231.0,0.0009086]
[1724133594578,1.22474239,61232.0,61231.0,0.0019086]
[1724133595264,1.27364293,61232.0,61231.0,0.0019086]
[1724133595691,1.28464293,61232.0,61231.0,0.0029086]
[1724133595900,1.23574239,61232.0,61231.0,0.0029086]
[1724133596410,1.28463296,61232.0,61231.0,0.0029086]
[1724133597133,1.23574239,61232.0,61231.0,0.0029086]
[1724133597783,1.28462385,61232.0,61231.0,0.0029086]
[1724133598234,1.23574239,61232.0,61231.0,0.0029086]
[1724133600124,1.23498239,61232.0,61231.0,0.0029086]
[1724133600723,1.52108239,61232.0,61231.0,0.0029086]
[1724133601342,0.41917739,61232.0,61231.0,0.0029086]
[1724133601562,0.012,61232.0,61231.0,0.4928546]
[1724133601765,0.012,61232.0,61231.0,1.34389399]
[1724133601978,0.012,61232.0,61231.0,0.8530856]
[1724133602190,0.012,61232.0,61231.0,0.4928546]
[1724133602396,0.001,61232.0,61231.0,0.8184856]
[1724133602780,0.001,61235.0,61231.0,0.8184856]
[1724133602781,0.001,61235.0,61234.0,0.816537]
[1724133603815,0.0759,61243.0,61240.0,0.163291]
[1724133603816,0.070112,61243.0,61240.0,0.163291]
[1724133604020,0.070112,61243.0,61242.0,0.163286]
[1724133604220,0.061672,61243.0,61242.0,0.489859]
[1724133604833,0.061672,61243.0,61241.0,0.163288]
[1724133605464,0.061672,61243.0,61237.0,0.326595]
[1724133605666,0.3503,61244.0,61230.0,0.326634]
[1724133605667,0.2861,61238.0,61230.0,0.326634]
[1724133605877,0.2861,61238.0,61223.0,0.0009086]
[1724133605878,0.39077839,61237.0,61232.0,0.163313]
[1724133606049,0.163302,61236.0,61234.0,0.002]
[1724133606332,0.32647939,61236.0,61234.0,0.002]
[1724133606531,0.16317739,61236.0,61232.0,0.163312]
[1724133606713,0.16317739,61235.0,61231.0,0.0009086]
[1724133606947,0.2861,61232.0,61231.0,0.0009086]
[1724133607151,0.44927739,61232.0,61231.0,0.0009086]
[1724133607332,0.44927739,61232.0,61231.0,0.1642236]
[1724133607333,0.3687,61232.0,61231.0,0.1642236]
[1724133608382,0.0826,61232.0,61231.0,0.4908546]
[1724133608590,0.004,61236.0,61235.0,0.816525]
[1724133608794,0.012,61236.0,61235.0,1.143135]
[1724133609215,0.08607,61245.0,61244.0,0.489843]
[1724133609497,0.08607,61245.0,61244.0,0.816405]
[1724133611125,0.09007,61245.0,61244.0,0.816405]
[1724133611503,0.09007,61245.0,61244.0,0.817405]
[1724133611504,0.09807,61245.0,61244.0,0.817405]
[1724133611914,0.09007,61245.0,61244.0,0.816405]
[1724133612117,0.09707,61245.0,61244.0,0.817405]
[1724133612319,0.01927,61245.0,61244.0,0.817405]
[1724133612722,0.01927,61245.0,61244.0,0.327562]
[1724133612723,0.30537,61245.0,61244.0,0.327562]
[1724133613014,0.30537,61245.0,61244.0,0.164281]
[1724133613218,0.30537,61245.0,61244.0,0.001]
[1724133613219,1.09408239,61245.0,61244.0,0.001]
[1724133613424,1.84719639,61245.0,61244.0,0.001]
[1724133613820,1.52063939,61245.0,61244.0,0.001]
[1724133614024,1.23453939,61245.0,61244.0,0.001]
[1724133614199,1.19408239,61245.0,61244.0,0.001]
[1724133614581,0.86752539,61245.0,61244.0,0.001]
[1724133614784,0.09477,61245.0,61244.0,0.164281]
[1724133614983,0.01927,61245.0,61244.0,0.817405]
[1724133615191,0.01927,61245.0,61244.0,0.490843]
[1724133615391,0.60424739,61245.0,61244.0,0.001]
[1724133615592,1.09408239,61245.0,61244.0,0.001]
[1724133616297,1.89091313,61245.0,61244.0,0.001]
[1724133616505,1.81904877,61245.0,61244.0,0.001]
[1724133616708,2.10839291,61245.0,61244.0,0.001]
[1724133616916,2.10839291,61245.0,61215.0,0.095]
[1724133616917,0.163313,61232.0,61222.0,0.326675]
[1724133617137,1.07451639,61232.0,61225.0,0.163331]
[1724133617325,1.07451639,61232.0,61222.0,0.326675]
[1724133617727,1.07451639,61232.0,61225.0,0.163331]
[1724133618664,1.07851639,61232.0,61225.0,0.163331]
[1724133618869,1.07451639,61232.0,61225.0,0.163331]
[1724133619018,1.40114239,61232.0,61223.0,0.1642436]
[1724133619229,0.62837739,61232.0,61223.0,0.0009086]
[1724133619452,1.244672,61224.0,61223.0,0.0009086]
[1724133619652,1.40784939,61224.0,61223.0,0.0009086]
[1724133619854,1.50784939,61224.0,61223.0,0.0009086]
[1724133620608,1.83451839,61224.0,61223.0,0.0009086]
[1724133620723,1.85751839,61224.0,61223.0,0.0009086]
[1724133620919,1.18118039,61224.0,61223.0,0.0009086]
[1724133621411,1.52084939,61224.0,61223.0,0.0079086]
[1724133621619,1.51984939,61224.0,61223.0,0.0019086]
[1724133622013,1.53384939,61224.0,61223.0,0.0029086]
[1724133622219,1.86051839,61224.0,61223.0,0.0029086]
[1724133622419,1.86951839,61224.0,61223.0,0.0019086]
[1724133622671,1.88351839,61224.0,61223.0,0.0029086]
[1724133622874,1.87151839,61224.0,61223.0,0.0019086]
[1724133623084,1.86551839,61224.0,61223.0,0.0019086]
[1724133623497,1.88596526,61224.0,61223.0,0.0009086]
[1724133624003,1.88596526,61224.0,61223.0,0.0019086]
[1724133624004,1.89396526,61224.0,61223.0,0.0019086]
[1724133624258,1.89596526,61224.0,61223.0,0.0019086]
[1724133624467,1.89596526,61224.0,61200.0,0.02561359]
[1724133624468,1.145376,61222.0,61200.0,0.02561359]
[1724133624671,0.0784,61204.0,61201.0,0.163394]
[1724133624888,0.0784,61204.0,61192.0,0.326837]
[1724133624889,0.16317739,61203.0,61192.0,0.39965286]
[1724133625092,0.16317739,61203.0,61197.0,0.163405]
[1724133625093,0.163393,61202.0,61197.0,0.163405]
[1724133625267,0.16317739,61201.0,61197.0,0.163405]
[1724133625530,0.32657439,61201.0,61192.0,0.0472]
[1724133625708,0.16317739,61201.0,61198.0,0.163402]
[1724133627442,0.32757339,61201.0,61198.0,0.012]
[1724133627656,0.16417739,61201.0,61198.0,0.012]
[1724133627832,0.16317739,61201.0,61198.0,0.007]
[1724133628073,0.16417739,61201.0,61198.0,0.007]
[1724133628283,0.16317739,61201.0,61197.0,0.163405]
[1724133628740,0.16317739,61201.0,61198.0,0.166403]
[1724133630216,1.244505,61199.0,61198.0,0.003]
[1724133630418,1.73448439,61199.0,61198.0,0.003]
[1724133630663,1.83448439,61199.0,61198.0,0.003]
[1724133631208,1.85748439,61199.0,61198.0,0.003]
[1724133631465,2.02061919,61199.0,61198.0,0.003]
[1724133632323,1.289228,61198.0,61197.0,0.003]
[1724133632527,0.16343,61188.0,61187.0,0.0009097]
[1724133632655,0.67920739,61188.0,61187.0,0.0009097]
[1724133632861,0.59467739,61188.0,61187.0,0.0009097]
[1724133633646,0.75810739,61188.0,61187.0,0.0009097]
[1724133634514,1.08496839,61188.0,61187.0,0.0009097]
[1724133635296,1.08596839,61188.0,61187.0,0.0009097]
[1724133635475,1.41282939,61188.0,61187.0,0.0009097]
[1724133638049,0.59567739,61188.0,61187.0,0.0009097]
[1724133639470,0.1464,61188.0,61187.0,0.1643427]
[1724133639656,0.001,61188.0,61187.0,0.8658747]
[1724133639884,0.001,61188.0,61187.0,1.1927407]
[1724133640235,0.001,61188.0,61187.0,0.8180747]